[Event "*** Titled Tuesday Blitz"]
[Site "Chess.com"]
[Date "2020.04.14"]
[Round "3"]
[White "Benjoneliere44"]
[Black "Trickov"]
[Result "1-0"]
[WhiteElo "2646"]
[BlackElo "2267"]
[TimeControl "180+1"]
[EndTime "10:26:45 PDT"]
[Termination "Benjoneliere44 won by resignation"]

1. d4 {[%clk 0:03:00.9]} 1... d5 {[%clk 0:02:10.4]} 2. c4 {[%clk 0:02:58.7]}
2... c6 {[%clk 0:02:09.7]} 3. cxd5 {[%clk 0:02:46.3]} 3... cxd5 {[%clk 0:02:09]}
4. Nc3 {[%clk 0:02:47.2]} 4... Nf6 {[%clk 0:02:09.3]} 5. Bf4 {[%clk 0:02:45.4]}
5... Nc6 {[%clk 0:02:09.7]} 6. e3 {[%clk 0:02:44.8]} 6... Qb6 {[%clk 0:02:07.8]}
7. Qd2 {[%clk 0:02:37.1]} 7... a6 {[%clk 0:02:05.8]} 8. Bd3 {[%clk 0:02:33.3]}
8... Bg4 {[%clk 0:02:03.4]} 9. Nge2 {[%clk 0:02:29.6]} 9... e6 {[%clk
0:02:03.3]} 10. O-O {[%clk 0:02:28.8]} 10... Be7 {[%clk 0:01:53.8]} 11. Rfc1
{[%clk 0:02:27.4]} 11... O-O {[%clk 0:01:53]} 12. a3 {[%clk 0:02:19.8]} 12...
Rfc8 {[%clk 0:01:42.8]} 13. Na4 {[%clk 0:02:19.3]} 13... Qd8 {[%clk 0:01:36.4]}
14. Nc5 {[%clk 0:02:18.9]} 14... Na5 {[%clk 0:01:22.5]} 15. Rc3 {[%clk
0:01:53.5]} 15... b5 {[%clk 0:01:10.7]} 16. f3 {[%clk 0:01:48.1]} 16... Bh5
{[%clk 0:01:09.2]} 17. Rac1 {[%clk 0:01:44.6]} 17... Nc4 {[%clk 0:01:06.8]} 18.
Qc2 {[%clk 0:01:41.3]} 18... Bg6 {[%clk 0:01:03.9]} 19. Bxg6 {[%clk 0:01:32.4]}
19... hxg6 {[%clk 0:01:03.3]} 20. Nd3 {[%clk 0:01:31.4]} 20... Rc6 {[%clk
0:00:49.1]} 21. Ne5 {[%clk 0:01:25.8]} 21... Nxe5 {[%clk 0:00:46.4]} 22. Rxc6
{[%clk 0:01:19.5]} 22... Nxc6 {[%clk 0:00:45.7]} 23. Qxc6 {[%clk 0:01:20.4]}
23... b4 {[%clk 0:00:37.7]} 24. a4 {[%clk 0:01:18.5]} 24... b3 {[%clk 0:00:27]}
25. Rc3 {[%clk 0:01:13.1]} 25... Qa5 {[%clk 0:00:19.3]} 26. Qxa8+ {[%clk
0:01:11.9]} 1-0

[Event "*** Titled Tuesday Blitz"]
[Site "Chess.com"]
[Date "2020.04.14"]
[Round "3"]
[White "milovanratkovic"]
[Black "Angry_Twin"]
[Result "0-1"]
[WhiteElo "2488"]
[BlackElo "2827"]
[TimeControl "180+1"]
[EndTime "10:26:50 PDT"]
[Termination "Angry_Twin won by resignation"]

1. d4 {[%clk 0:03:00.2]} 1... Nf6 {[%clk 0:02:46.6]} 2. Nf3 {[%clk 0:02:59.2]}
2... d5 {[%clk 0:02:46.7]} 3. c4 {[%clk 0:02:56.3]} 3... e6 {[%clk 0:02:46.4]}
4. Nc3 {[%clk 0:02:55.2]} 4... c6 {[%clk 0:02:46.3]} 5. e3 {[%clk 0:02:52.9]}
5... Nbd7 {[%clk 0:02:45.7]} 6. Qc2 {[%clk 0:02:53.5]} 6... Bd6 {[%clk
0:02:45.5]} 7. b3 {[%clk 0:02:54]} 7... b6 {[%clk 0:02:44.4]} 8. Bb2 {[%clk
0:02:54.5]} 8... Bb7 {[%clk 0:02:44.9]} 9. Be2 {[%clk 0:02:53.9]} 9... O-O
{[%clk 0:02:44.5]} 10. O-O {[%clk 0:02:54.6]} 10... Qe7 {[%clk 0:02:43.4]} 11.
Rad1 {[%clk 0:02:54.9]} 11... Rad8 {[%clk 0:02:42.1]} 12. e4 {[%clk 0:02:55.2]}
12... dxe4 {[%clk 0:02:41.5]} 13. Nxe4 {[%clk 0:02:56.1]} 13... Nxe4 {[%clk
0:02:42.1]} 14. Qxe4 {[%clk 0:02:57]} 14... f5 {[%clk 0:02:42.6]} 15. Qc2 {[%clk
0:02:44.1]} 15... c5 {[%clk 0:02:36.4]} 16. d5 {[%clk 0:02:43.1]} 16... e5
{[%clk 0:02:33.4]} 17. Ne1 {[%clk 0:02:40.7]} 17... e4 {[%clk 0:02:29.3]} 18. f4
{[%clk 0:02:39.7]} 18... exf3 {[%clk 0:02:14.7]} 19. Nxf3 {[%clk 0:02:37.5]}
19... Nf6 {[%clk 0:02:14.6]} 20. Bd3 {[%clk 0:02:25.1]} 20... Ne4 {[%clk
0:01:45.5]} 21. Rde1 {[%clk 0:02:24.1]} 21... Rde8 {[%clk 0:01:44.9]} 22. Re2
{[%clk 0:02:24.2]} 22... Bc8 {[%clk 0:01:16.9]} 23. Rfe1 {[%clk 0:02:21.1]}
23... Qf7 {[%clk 0:01:17.1]} 24. Qc1 {[%clk 0:01:59.2]} 24... Qh5 {[%clk
0:01:10.3]} 25. Bxe4 {[%clk 0:01:42.1]} 25... fxe4 {[%clk 0:01:09.4]} 26. Rxe4
{[%clk 0:01:43]} 26... Rxe4 {[%clk 0:01:08]} 27. Rxe4 {[%clk 0:01:43.9]} 27...
Rxf3 {[%clk 0:00:56.2]} 28. gxf3 {[%clk 0:01:40.6]} 28... Qxh2+ {[%clk
0:00:56.1]} 29. Kf1 {[%clk 0:01:40.7]} 29... Bg3 {[%clk 0:00:40.4]} 30. Re8+
{[%clk 0:01:29]} 30... Kf7 {[%clk 0:00:40.3]} 31. Re7+ {[%clk 0:01:23]} 31...
Kxe7 {[%clk 0:00:40.2]} 32. Qg5+ {[%clk 0:01:22]} 32... Ke8 {[%clk 0:00:39.7]}
33. Qe3+ {[%clk 0:01:08.4]} 33... Kf7 {[%clk 0:00:39.6]} 0-1

[Event "*** Titled Tuesday Blitz"]
[Site "Chess.com"]
[Date "2020.04.14"]
[Round "3"]
[White "HashtagChess"]
[Black "Durarbayli"]
[Result "0-1"]
[WhiteElo "1640"]
[BlackElo "2818"]
[TimeControl "180+1"]
[EndTime "10:26:52 PDT"]
[Termination "Durarbayli won by resignation"]

1. e4 {[%clk 0:03:00.9]} 1... c5 {[%clk 0:02:59.5]} 2. Nf3 {[%clk 0:03:00.6]}
2... d6 {[%clk 0:02:59.6]} 3. d4 {[%clk 0:03:01]} 3... cxd4 {[%clk 0:03:00.5]}
4. Nxd4 {[%clk 0:03:01.6]} 4... Nf6 {[%clk 0:03:01.1]} 5. Nc3 {[%clk 0:03:01]}
5... Nc6 {[%clk 0:03:01.6]} 6. Bg5 {[%clk 0:02:56.1]} 6... Qb6 {[%clk
0:03:01.3]} 7. Nb3 {[%clk 0:02:47.9]} 7... e6 {[%clk 0:03:00.7]} 8. Qd2 {[%clk
0:02:41.1]} 8... Be7 {[%clk 0:02:59.1]} 9. f4 {[%clk 0:02:32.6]} 9... h6 {[%clk
0:02:51.4]} 10. Bh4 {[%clk 0:02:31.5]} 10... Nxe4 {[%clk 0:02:42.5]} 11. Nxe4
{[%clk 0:02:28.8]} 11... Bxh4+ {[%clk 0:02:42.8]} 12. g3 {[%clk 0:02:26.9]}
12... Be7 {[%clk 0:02:43]} 13. Nxd6+ {[%clk 0:02:19.5]} 13... Bxd6 {[%clk
0:02:42.6]} 14. Qxd6 {[%clk 0:02:18.3]} 14... Qe3+ {[%clk 0:02:42.3]} 15. Be2
{[%clk 0:02:14.8]} 15... e5 {[%clk 0:02:42.3]} 16. Qd3 {[%clk 0:01:56.6]} 16...
exf4 {[%clk 0:02:40.2]} 17. gxf4 {[%clk 0:01:45.4]} 17... Qxf4 {[%clk
0:02:39.6]} 18. Rf1 {[%clk 0:01:32.6]} 18... Qh4+ {[%clk 0:02:36.7]} 19. Qg3
{[%clk 0:01:28.9]} 19... Qxg3+ {[%clk 0:02:36.8]} 20. hxg3 {[%clk 0:01:29.8]}
20... O-O {[%clk 0:02:35.1]} 21. O-O-O {[%clk 0:01:28.8]} 21... Bh3 {[%clk
0:02:31.3]} 22. Rh1 {[%clk 0:01:27.3]} 22... Bf5 {[%clk 0:02:15]} 23. g4 {[%clk
0:01:20.4]} 23... Bg6 {[%clk 0:02:11.5]} 24. Bf3 {[%clk 0:01:11.2]} 24... Rac8
{[%clk 0:02:10.3]} 25. Rh2 {[%clk 0:00:51.6]} 25... Nb4 {[%clk 0:02:07.1]} 26.
Nd4 {[%clk 0:00:37.9]} 26... Nxa2+ {[%clk 0:01:30.9]} 27. Kb1 {[%clk 0:00:37]}
27... Nb4 {[%clk 0:01:31.8]} 28. Bxb7 {[%clk 0:00:35.8]} 28... Rc7 {[%clk
0:01:31.8]} 29. Bf3 {[%clk 0:00:31.5]} 29... Rd8 {[%clk 0:01:31.6]} 30. Rdd2
{[%clk 0:00:21.2]} 30... Rcd7 {[%clk 0:01:26.8]} 31. Kc1 {[%clk 0:00:18.2]}
31... Rxd4 {[%clk 0:01:25.1]} 0-1

[Event "*** Titled Tuesday Blitz"]
[Site "Chess.com"]
[Date "2020.04.14"]
[Round "3"]
[White "MokshAD1603"]
[Black "KlyashtornyVladislav"]
[Result "1-0"]
[WhiteElo "2345"]
[BlackElo "2138"]
[TimeControl "180+1"]
[EndTime "10:26:52 PDT"]
[Termination "MokshAD1603 won by resignation"]

1. d4 {[%clk 0:03:00.9]} 1... d5 {[%clk 0:02:56.8]} 2. Nf3 {[%clk 0:03:00.3]}
2... e6 {[%clk 0:02:57.1]} 3. c4 {[%clk 0:03:00.5]} 3... f5 {[%clk 0:02:57.2]}
4. g3 {[%clk 0:02:59.5]} 4... Nf6 {[%clk 0:02:57.5]} 5. Bg2 {[%clk 0:02:59.9]}
5... Nbd7 {[%clk 0:02:56.8]} 6. O-O {[%clk 0:02:59.5]} 6... Bd6 {[%clk
0:02:56.6]} 7. c5 {[%clk 0:02:56.8]} 7... Be7 {[%clk 0:02:56.3]} 8. b4 {[%clk
0:02:55]} 8... Ne4 {[%clk 0:02:55.9]} 9. Bb2 {[%clk 0:02:49.8]} 9... Bf6 {[%clk
0:02:53]} 10. Nc3 {[%clk 0:02:47.1]} 10... g5 {[%clk 0:02:50.6]} 11. e3 {[%clk
0:02:43.6]} 11... g4 {[%clk 0:02:50.8]} 12. Nxe4 {[%clk 0:02:41]} 12... dxe4
{[%clk 0:02:50.1]} 13. Nd2 {[%clk 0:02:39.4]} 13... h5 {[%clk 0:02:48.5]} 14.
Nc4 {[%clk 0:02:35.4]} 14... h4 {[%clk 0:02:48.2]} 15. Qb3 {[%clk 0:01:52.1]}
15... Qe7 {[%clk 0:02:47.4]} 16. Rfd1 {[%clk 0:01:39.7]} 16... Qh7 {[%clk
0:02:46.8]} 17. d5 {[%clk 0:01:38.4]} 17... hxg3 {[%clk 0:02:45.9]} 18. hxg3
{[%clk 0:01:39.3]} 18... exd5 {[%clk 0:02:41.7]} 19. Rxd5 {[%clk 0:01:36.2]}
19... Qg6 {[%clk 0:02:25.3]} 20. Rad1 {[%clk 0:01:34.2]} 20... Nf8 {[%clk
0:02:12.7]} 21. Qa4+ {[%clk 0:01:17.4]} 21... c6 {[%clk 0:02:06.3]} 22. Nd6+
{[%clk 0:01:17.1]} 22... Ke7 {[%clk 0:02:04.9]} 23. Bxf6+ {[%clk 0:01:16.8]}
23... Qxf6 {[%clk 0:02:04.1]} 24. R1d2 {[%clk 0:01:06.4]} 24... Be6 {[%clk
0:01:55]} 25. R5d4 {[%clk 0:01:05.5]} 25... Nd7 {[%clk 0:01:50.5]} 26. Nxb7
{[%clk 0:01:04.9]} 26... Ne5 {[%clk 0:01:50.6]} 27. Qa5 {[%clk 0:01:01.6]} 27...
Rac8 {[%clk 0:01:47.5]} 28. Qxa7 {[%clk 0:00:59.4]} 28... Rc7 {[%clk 0:01:47.8]}
29. Qb6 {[%clk 0:00:58.8]} 29... Rhc8 {[%clk 0:01:47.2]} 30. Nd6 {[%clk
0:00:57.6]} 30... Nf3+ {[%clk 0:01:41.7]} 31. Bxf3 {[%clk 0:00:57.1]} 31... gxf3
{[%clk 0:01:41.8]} 32. Nxc8+ {[%clk 0:00:58]} 32... Rxc8 {[%clk 0:01:42.2]} 33.
Rd8 {[%clk 0:00:56.5]} 33... Qa1+ {[%clk 0:01:35.7]} 34. Rd1 {[%clk 0:00:55.2]}
34... Qxa2 {[%clk 0:01:29.4]} 35. Qb7+ {[%clk 0:00:54.2]} 35... Kf6 {[%clk
0:01:27.4]} 36. Rxc8 {[%clk 0:00:54.2]} 1-0

[Event "*** Titled Tuesday Blitz"]
[Site "Chess.com"]
[Date "2020.04.14"]
[Round "3"]
[White "Sebastian"]
[Black "Sjakkerntobi"]
[Result "1-0"]
[WhiteElo "2992"]
[BlackElo "2259"]
[TimeControl "180+1"]
[EndTime "10:26:55 PDT"]
[Termination "Sebastian won by resignation"]

1. e4 {[%clk 0:03:00.9]} 1... e6 {[%clk 0:02:59.9]} 2. d4 {[%clk 0:03:00.5]}
2... d5 {[%clk 0:03:00.8]} 3. Nc3 {[%clk 0:03:00.9]} 3... Bb4 {[%clk 0:02:59.8]}
4. e5 {[%clk 0:03:01.1]} 4... Ne7 {[%clk 0:02:59.6]} 5. a3 {[%clk 0:02:59.3]}
5... Bxc3+ {[%clk 0:02:59]} 6. bxc3 {[%clk 0:03:00.2]} 6... c5 {[%clk
0:02:59.6]} 7. h4 {[%clk 0:02:59.3]} 7... Qc7 {[%clk 0:02:55.1]} 8. h5 {[%clk
0:02:59.3]} 8... h6 {[%clk 0:02:55.3]} 9. Rb1 {[%clk 0:02:58.8]} 9... b6 {[%clk
0:02:54.1]} 10. Qg4 {[%clk 0:02:58.4]} 10... Kf8 {[%clk 0:02:45]} 11. Rh3 {[%clk
0:02:46.4]} 11... Ba6 {[%clk 0:02:41.8]} 12. Bxa6 {[%clk 0:02:33.5]} 12... Nxa6
{[%clk 0:02:42.7]} 13. Qf4 {[%clk 0:02:08.5]} 13... cxd4 {[%clk 0:02:04.8]} 14.
Rf3 {[%clk 0:02:07.4]} 14... Nc6 {[%clk 0:02:04.6]} 15. cxd4 {[%clk 0:02:05.8]}
15... Kg8 {[%clk 0:01:58]} 16. Ne2 {[%clk 0:02:04.7]} 16... Rf8 {[%clk
0:01:54.2]} 17. Rg3 {[%clk 0:01:57]} 17... Kh7 {[%clk 0:01:51.4]} 18. Rxg7+
{[%clk 0:01:32.4]} 18... Kxg7 {[%clk 0:01:50.4]} 19. Qf6+ {[%clk 0:01:33.3]}
19... Kh7 {[%clk 0:01:26.4]} 20. Rb3 {[%clk 0:01:28.6]} 20... Ne7 {[%clk
0:00:52.9]} 21. Qxh6+ {[%clk 0:01:25.4]} 21... Kg8 {[%clk 0:00:51.3]} 22. Qg5+
{[%clk 0:01:25.5]} 22... Kh7 {[%clk 0:00:44.7]} 23. Rc3 {[%clk 0:01:23.1]} 23...
Qd7 {[%clk 0:00:41.3]} 24. Qh6+ {[%clk 0:01:14]} 24... Kg8 {[%clk 0:00:40.5]}
25. Rg3+ {[%clk 0:01:14.1]} 25... Ng6 {[%clk 0:00:40.8]} 26. Qg5 {[%clk
0:01:14.2]} 26... Rh7 {[%clk 0:00:34.1]} 27. hxg6 {[%clk 0:01:12.4]} 27... Rg7
{[%clk 0:00:33]} 28. Nf4 {[%clk 0:01:07.8]} 28... fxg6 {[%clk 0:00:29.1]} 29.
Nxg6 {[%clk 0:01:02.6]} 29... Rf5 {[%clk 0:00:24.4]} 30. Ne7+ {[%clk 0:01:02.2]}
1-0

[Event "*** Titled Tuesday Blitz"]
[Site "Chess.com"]
[Date "2020.04.14"]
[Round "3"]
[White "Misticpikachu"]
[Black "m-garcett"]
[Result "1-0"]
[WhiteElo "2291"]
[BlackElo "2004"]
[TimeControl "180+1"]
[EndTime "10:26:58 PDT"]
[Termination "Misticpikachu won by resignation"]

1. c4 {[%clk 0:03:00.9]} 1... Nf6 {[%clk 0:02:59.1]} 2. Nc3 {[%clk 0:03:00.5]}
2... g6 {[%clk 0:02:54.8]} 3. e4 {[%clk 0:03:00.6]} 3... d6 {[%clk 0:02:54]} 4.
d4 {[%clk 0:03:00.9]} 4... Bg7 {[%clk 0:02:51.7]} 5. h3 {[%clk 0:03:01.2]} 5...
c5 {[%clk 0:02:46.4]} 6. Nf3 {[%clk 0:02:59.9]} 6... O-O {[%clk 0:02:44.5]} 7.
Be3 {[%clk 0:02:54.4]} 7... Na6 {[%clk 0:02:18.5]} 8. Be2 {[%clk 0:02:52.8]}
8... b6 {[%clk 0:02:12.1]} 9. O-O {[%clk 0:02:52.1]} 9... Bb7 {[%clk 0:02:11.5]}
10. d5 {[%clk 0:02:52.1]} 10... Nc7 {[%clk 0:02:09.3]} 11. a4 {[%clk 0:02:47.2]}
11... a6 {[%clk 0:02:06.1]} 12. Re1 {[%clk 0:02:43.5]} 12... e5 {[%clk
0:01:51.8]} 13. Qd2 {[%clk 0:02:30.1]} 13... Nh5 {[%clk 0:01:34]} 14. Bh6 {[%clk
0:02:28.8]} 14... Nf4 {[%clk 0:01:25.8]} 15. Bxf4 {[%clk 0:02:24.6]} 15... exf4
{[%clk 0:01:25.4]} 16. Qxf4 {[%clk 0:02:25.1]} 16... b5 {[%clk 0:01:08.8]} 17.
axb5 {[%clk 0:02:24.4]} 17... axb5 {[%clk 0:01:08.3]} 18. Rxa8 {[%clk 0:02:25]}
18... Bxa8 {[%clk 0:01:04.4]} 19. cxb5 {[%clk 0:02:18.6]} 19... Re8 {[%clk
0:00:49]} 20. b6 {[%clk 0:01:57.6]} 20... Nxd5 {[%clk 0:00:37.6]} 21. Nxd5
{[%clk 0:01:54.4]} 21... Bxd5 {[%clk 0:00:34.6]} 22. exd5 {[%clk 0:01:55]} 22...
Qxb6 {[%clk 0:00:35]} 23. Ng5 {[%clk 0:01:41.3]} 23... f5 {[%clk 0:00:32.7]} 24.
Ne6 {[%clk 0:01:41.1]} 24... Be5 {[%clk 0:00:32]} 25. Qd2 {[%clk 0:01:33.7]}
25... Ra8 {[%clk 0:00:18.7]} 26. Bd3 {[%clk 0:01:32.5]} 26... Ra2 {[%clk
0:00:17.6]} 27. Bxf5 {[%clk 0:01:19.1]} 27... gxf5 {[%clk 0:00:16.4]} 28. Qg5+
{[%clk 0:01:17.9]} 28... Kh8 {[%clk 0:00:16.7]} 29. Rxe5 {[%clk 0:01:15.3]} 1-0

[Event "*** Titled Tuesday Blitz"]
[Site "Chess.com"]
[Date "2020.04.14"]
[Round "3"]
[White "Godzillator"]
[Black "nocnypako"]
[Result "0-1"]
[WhiteElo "2367"]
[BlackElo "2592"]
[TimeControl "180+1"]
[EndTime "10:26:59 PDT"]
[Termination "nocnypako won by resignation"]

1. d4 {[%clk 0:03:00.9]} 1... Nf6 {[%clk 0:02:57.9]} 2. c4 {[%clk 0:03:01]} 2...
g6 {[%clk 0:02:58]} 3. Nc3 {[%clk 0:03:01.4]} 3... d5 {[%clk 0:02:58.5]} 4. Nf3
{[%clk 0:03:01.2]} 4... Bg7 {[%clk 0:02:58.3]} 5. h4 {[%clk 0:03:01.5]} 5...
dxc4 {[%clk 0:02:56.8]} 6. e4 {[%clk 0:02:59.7]} 6... c5 {[%clk 0:02:57.4]} 7.
d5 {[%clk 0:02:59.6]} 7... b5 {[%clk 0:02:49.9]} 8. e5 {[%clk 0:02:58.9]} 8...
Ng4 {[%clk 0:02:50.1]} 9. Bf4 {[%clk 0:02:40.1]} 9... b4 {[%clk 0:02:49.5]} 10.
Ne4 {[%clk 0:02:37.6]} 10... Nd7 {[%clk 0:02:44.3]} 11. e6 {[%clk 0:02:32.3]}
11... fxe6 {[%clk 0:02:43.8]} 12. Nfg5 {[%clk 0:02:32.8]} 12... Ndf6 {[%clk
0:02:21.9]} 13. Nxf6+ {[%clk 0:02:16.8]} 13... Nxf6 {[%clk 0:01:46.5]} 14. dxe6
{[%clk 0:01:56.3]} 14... Qxd1+ {[%clk 0:01:39.6]} 15. Rxd1 {[%clk 0:01:55.5]}
15... h6 {[%clk 0:01:39.6]} 16. Nf7 {[%clk 0:01:53.9]} 16... Bxe6 {[%clk
0:01:39.7]} 17. Nxh8 {[%clk 0:01:52.2]} 17... Bxh8 {[%clk 0:01:40.6]} 18. Be5
{[%clk 0:01:47.6]} 18... Kf7 {[%clk 0:01:36.1]} 19. Be2 {[%clk 0:01:47.2]} 19...
Ne4 {[%clk 0:01:28.5]} 20. Bxh8 {[%clk 0:01:46.4]} 20... Rxh8 {[%clk 0:01:29.4]}
21. Rc1 {[%clk 0:01:36.2]} 21... c3 {[%clk 0:01:29]} 22. bxc3 {[%clk 0:01:35.8]}
22... Nxc3 {[%clk 0:01:29.9]} 23. a3 {[%clk 0:01:33]} 23... a5 {[%clk 0:01:20]}
24. axb4 {[%clk 0:01:32.5]} 24... cxb4 {[%clk 0:01:17.8]} 25. Bf3 {[%clk
0:01:17.3]} 25... a4 {[%clk 0:01:17.1]} 26. Kd2 {[%clk 0:01:17.4]} 26... Rd8+
{[%clk 0:01:15.1]} 27. Kc2 {[%clk 0:01:13]} 27... a3 {[%clk 0:01:13.3]} 28. g4
{[%clk 0:01:04.6]} 28... Rd4 {[%clk 0:01:06.8]} 29. Rhe1 {[%clk 0:01:03]} 29...
Nb5 {[%clk 0:00:45.1]} 30. Re3 {[%clk 0:00:49]} 30... Rc4+ {[%clk 0:00:45.2]}
31. Kb1 {[%clk 0:00:44.4]} 31... a2+ {[%clk 0:00:45]} 32. Kb2 {[%clk 0:00:42.3]}
32... Rxc1 {[%clk 0:00:44.6]} 0-1

[Event "*** Titled Tuesday Blitz"]
[Site "Chess.com"]
[Date "2020.04.14"]
[Round "3"]
[White "FannyDuarteNapoles"]
[Black "nubair1198"]
[Result "1-0"]
[WhiteElo "2292"]
[BlackElo "2799"]
[TimeControl "180+1"]
[EndTime "10:27:01 PDT"]
[Termination "FannyDuarteNapoles won by resignation"]

1. c4 {[%clk 0:03:00]} 1... g6 {[%clk 0:02:59.6]} 2. Nc3 {[%clk 0:03:00.9]} 2...
Bg7 {[%clk 0:03:00]} 3. d4 {[%clk 0:03:01.8]} 3... Nf6 {[%clk 0:03:00.4]} 4. Nf3
{[%clk 0:03:02.2]} 4... O-O {[%clk 0:03:00.3]} 5. e4 {[%clk 0:03:02.6]} 5... d6
{[%clk 0:03:00.7]} 6. h3 {[%clk 0:03:03.1]} 6... e5 {[%clk 0:03:00.3]} 7. d5
{[%clk 0:03:03.5]} 7... Nh5 {[%clk 0:03:00.6]} 8. Be2 {[%clk 0:03:03.6]} 8... f5
{[%clk 0:02:59.9]} 9. O-O {[%clk 0:03:00.2]} 9... Nf4 {[%clk 0:02:59.5]} 10. Re1
{[%clk 0:02:58.7]} 10... Na6 {[%clk 0:02:55.2]} 11. Bf1 {[%clk 0:02:58]} 11...
Nc5 {[%clk 0:02:54.7]} 12. Bxf4 {[%clk 0:02:57.7]} 12... exf4 {[%clk 0:02:54.6]}
13. e5 {[%clk 0:02:57.8]} 13... Ne4 {[%clk 0:02:52.5]} 14. Nxe4 {[%clk
0:02:55.3]} 14... fxe4 {[%clk 0:02:52.4]} 15. Rxe4 {[%clk 0:02:56.2]} 15... Bf5
{[%clk 0:02:51.1]} 16. Re1 {[%clk 0:02:53.5]} 16... dxe5 {[%clk 0:02:51.4]} 17.
Nxe5 {[%clk 0:02:53.3]} 17... Qd6 {[%clk 0:02:52]} 18. Nf3 {[%clk 0:02:52]}
18... Bxb2 {[%clk 0:02:51.6]} 19. Rc1 {[%clk 0:02:39.6]} 19... Bxc1 {[%clk
0:02:50.3]} 20. Qxc1 {[%clk 0:02:40.5]} 20... Rfe8 {[%clk 0:02:50.2]} 21. Rd1
{[%clk 0:02:39.1]} 21... Re7 {[%clk 0:02:43.8]} 22. c5 {[%clk 0:02:38.9]} 22...
Qf6 {[%clk 0:02:44.3]} 23. Qxf4 {[%clk 0:02:38.5]} 23... Re4 {[%clk 0:02:41]}
24. Qxc7 {[%clk 0:02:37.3]} 24... Re7 {[%clk 0:02:35.8]} 25. Qf4 {[%clk
0:02:35.2]} 25... Re4 {[%clk 0:02:35.4]} 26. Qc7 {[%clk 0:02:34.6]} 26... Bxh3
{[%clk 0:02:34.1]} 27. Qxb7 {[%clk 0:02:32.4]} 27... Rf8 {[%clk 0:02:33.2]} 28.
d6 {[%clk 0:02:30.3]} 28... Rf4 {[%clk 0:02:10.8]} 29. d7 {[%clk 0:02:25.8]}
29... Bg4 {[%clk 0:00:16.4]} 30. Qd5+ {[%clk 0:02:24.9]} 30... Be6 {[%clk
0:00:14.3]} 31. d8=Q {[%clk 0:02:22.4]} 31... Bxd5 {[%clk 0:00:14.9]} 32. Qxd5+
{[%clk 0:02:22.1]} 32... Kh8 {[%clk 0:00:15]} 33. c6 {[%clk 0:02:16.8]} 33...
Rf5 {[%clk 0:00:13.7]} 34. Qd4 {[%clk 0:02:12.2]} 34... Rc8 {[%clk 0:00:12.1]}
35. Qxa7 {[%clk 0:01:57.9]} 35... Qxc6 {[%clk 0:00:10.6]} 36. Nd4 {[%clk
0:01:55.4]} 36... Qd6 {[%clk 0:00:06.8]} 37. Nxf5 {[%clk 0:01:54.2]} 37... Qf8
{[%clk 0:00:07.4]} 38. Qd4+ {[%clk 0:01:52.8]} 38... Kg8 {[%clk 0:00:07.2]} 39.
Bc4+ {[%clk 0:01:53.1]} 1-0

[Event "*** Titled Tuesday Blitz"]
[Site "Chess.com"]
[Date "2020.04.14"]
[Round "3"]
[White "Promacherr"]
[Black "garicradomir"]
[Result "1/2-1/2"]
[WhiteElo "2603"]
[BlackElo "2390"]
[TimeControl "180+1"]
[EndTime "10:27:03 PDT"]
[Termination "Game drawn by repetition"]

1. d4 {[%clk 0:03:00.9]} 1... Nf6 {[%clk 0:02:59.8]} 2. c4 {[%clk 0:02:59.5]}
2... Nc6 {[%clk 0:02:59.8]} 3. Nf3 {[%clk 0:02:58.5]} 3... e6 {[%clk 0:02:59.7]}
4. Nc3 {[%clk 0:02:58.3]} 4... Bb4 {[%clk 0:02:59.1]} 5. g3 {[%clk 0:02:58.7]}
5... d6 {[%clk 0:02:57]} 6. Bg2 {[%clk 0:02:58.7]} 6... O-O {[%clk 0:02:56.7]}
7. O-O {[%clk 0:02:59]} 7... e5 {[%clk 0:02:50.9]} 8. dxe5 {[%clk 0:02:57.9]}
8... dxe5 {[%clk 0:02:49.8]} 9. Qb3 {[%clk 0:02:56.9]} 9... a5 {[%clk
0:02:28.4]} 10. Rd1 {[%clk 0:02:50.9]} 10... Qe7 {[%clk 0:02:22.6]} 11. Bg5
{[%clk 0:02:35.3]} 11... Bxc3 {[%clk 0:01:57]} 12. Qxc3 {[%clk 0:02:36.2]} 12...
h6 {[%clk 0:01:56.2]} 13. Bc1 {[%clk 0:02:25.8]} 13... Bg4 {[%clk 0:01:54.8]}
14. h3 {[%clk 0:02:06.1]} 14... Bxf3 {[%clk 0:01:54.5]} 15. Bxf3 {[%clk
0:02:06.3]} 15... Nd4 {[%clk 0:01:53.9]} 16. Re1 {[%clk 0:02:04.3]} 16... c6
{[%clk 0:01:37.7]} 17. Bg2 {[%clk 0:02:03.2]} 17... Qb4 {[%clk 0:01:20.4]} 18.
Bd2 {[%clk 0:01:46.7]} 18... Qxc3 {[%clk 0:01:17.9]} 19. Bxc3 {[%clk 0:01:47.6]}
19... Nc2 {[%clk 0:01:16.6]} 20. Bxe5 {[%clk 0:01:47.7]} 20... Nxa1 {[%clk
0:01:12.1]} 21. Rxa1 {[%clk 0:01:46.5]} 21... Rfe8 {[%clk 0:01:12.2]} 22. Bxf6
{[%clk 0:01:46.7]} 22... gxf6 {[%clk 0:01:13.1]} 23. e3 {[%clk 0:01:47.2]} 23...
Rad8 {[%clk 0:01:12.8]} 24. Rb1 {[%clk 0:01:37.3]} 24... Rd2 {[%clk 0:01:11.2]}
25. Kf1 {[%clk 0:01:36.1]} 25... Red8 {[%clk 0:00:54.3]} 26. Bf3 {[%clk
0:01:36.1]} 26... Rc2 {[%clk 0:00:51.6]} 27. Bd1 {[%clk 0:01:25.5]} 27... Rxc4
{[%clk 0:00:49.5]} 28. Bb3 {[%clk 0:01:25.5]} 28... Rb4 {[%clk 0:00:47.1]} 29.
Ke2 {[%clk 0:01:25.6]} 29... Kg7 {[%clk 0:00:45.6]} 30. Bc2 {[%clk 0:01:22.3]}
30... Rd5 {[%clk 0:00:43.9]} 31. a3 {[%clk 0:01:21.7]} 31... Rb6 {[%clk
0:00:38.8]} 32. b3 {[%clk 0:01:20.5]} 32... Rc5 {[%clk 0:00:30.8]} 33. Bd1
{[%clk 0:01:15.3]} 33... Rd5 {[%clk 0:00:26.4]} 34. Bc2 {[%clk 0:01:13.8]} 34...
Rbb5 {[%clk 0:00:24.8]} 35. Bd3 {[%clk 0:01:09.2]} 35... Rb6 {[%clk 0:00:22.2]}
36. Bc2 {[%clk 0:01:09.2]} 1/2-1/2